lending/lending_fUSD_20250122
["ID","MTS","AMOUNT","RATE_DAILY","PERIOD"]
[349952952,1737534644849,-500.0,0.00019721,2]
[349952953,1737534644859,-506.53,0.00019721,2]
[349952954,1737534644869,-1155.63,0.00019721,2]
[349952955,1737534644878,-2857.9,0.00019721,2]
[349952956,1737534644887,-500.0,0.00019721,2]
[349952957,1737534644896,-1293.83,0.00019721,2]
[349952958,1737534644906,-3678.54,0.00019721,2]
[349952959,1737534644918,-500.0,0.00019721,2]
[349952960,1737534644927,-500.0,0.00019721,2]
[349952961,1737534644936,-3091.61,0.00019721,2]
[349952962,1737534644945,-500.0,0.00019721,2]
[349952963,1737534644955,-547.79,0.00019721,2]
[349952964,1737534644964,-445.02431043,0.00019721,2]
[349952965,1737534644973,-3070.73,0.00019721,2]
[349952966,1737534644982,-957.09,0.00019721,2]
[349952967,1737534644991,-853.35,0.00019721,2]
[349952968,1737534645000,-1475.16,0.00019721,2]
[349952969,1737534645010,-676.64,0.00019721,2]
[349952970,1737534645019,-1214.2,0.00019721,2]
[349952971,1737534645029,-693.59,0.00019721,2]
[349952972,1737534645038,-151.0,0.00019721,2]
[349952973,1737534645047,-1500.17,0.00019721,2]
[349952974,1737534645056,-500.0,0.00019721,2]
[349952975,1737534645066,-4612.68,0.00019721,2]
[349952976,1737534645075,-500.0,0.00019721,2]
[349952977,1737534645084,-500.0,0.00019721,2]
[349952978,1737534645093,-695.39,0.00019721,2]
[349952979,1737534645103,-999.84,0.00019721,2]
[349952980,1737534645112,-500.0,0.00019721,2]
[349952981,1737534645121,-500.0,0.00019721,2]
[349952982,1737534645132,-2191.68,0.00019721,2]
[349952983,1737534645141,-500.0,0.00019721,2]
[349952984,1737534645150,-533.07,0.00019721,2]
[349952985,1737534645160,-1250.87,0.00019721,2]
[349952986,1737534645169,-500.0,0.00019721,2]
[349952987,1737534645178,-500.0,0.00019721,2]
[349952988,1737534645188,-500.0,0.00019721,2]
[349952989,1737534645197,-911.61,0.00019721,2]
[349952990,1737534645206,-231.51,0.00019721,2]
[349952991,1737534645215,-500.0,0.00019721,2]
[349952992,1737534645226,-500.0,0.00019721,2]
[349952993,1737534645235,-1011.73,0.00019721,2]
[349952994,1737534645244,-783.63,0.00019721,2]
[349952995,1737534645253,-785.43,0.00019721,2]
[349952996,1737534645262,-500.0,0.00019721,2]
[349952997,1737534645272,-665.31,0.00019721,2]
[349952998,1737534645281,-1768.25,0.00019721,2]
[349952999,1737534645290,-500.0,0.00019721,2]
[349953000,1737534645300,-821.28,0.00019721,2]
[349953001,1737534645310,-1086.52,0.00019721,2]
[349953002,1737534645320,-500.0,0.00019721,2]
[349953003,1737534645329,-500.0,0.00019721,2]
[349953004,1737534645338,-587.54,0.00019721,2]
[349953005,1737534645348,-583.26,0.00019721,2]
[349953006,1737534645357,-551.1,0.00019721,2]
[349953007,1737534645367,-500.0,0.00019721,2]
[349953008,1737534645377,-151.0,0.00019721,2]
[349953009,1737534645386,-1882.75,0.00019721,2]
[349953010,1737534645536,-1838.57,0.00019721,2]
[349953011,1737534645545,-500.0,0.00019721,2]
[349953012,1737534645555,-500.0,0.00019721,2]
[349953013,1737534645565,-500.0,0.00019721,2]
[349953014,1737534645575,-500.0,0.00019722,2]
[349953015,1737534645585,-500.0,0.00019722,2]
[349953016,1737534645595,-500.0,0.00019722,2]
[349953017,1737534645605,-500.0,0.00019722,2]
[349953018,1737534645615,-500.0,0.00019722,2]
[349953019,1737534645624,-180.57033424,0.00019722,2]
[349953020,1737534645633,-500.0,0.00019722,2]
[349953021,1737534645643,-500.0,0.00019722,2]
[349953022,1737534645652,-536.01529542,0.00019722,2]
[349953023,1737534645662,-500.0,0.00019722,2]
[349953024,1737534645671,-500.0,0.00019722,2]
[349953025,1737534645680,-500.0,0.00019722,2]
[349953026,1737534645691,-722.82,0.00019722,2]
[349953027,1737534645709,-500.0,0.00019722,2]
[349953028,1737534645720,-196.656917,0.00019722,2]
[349953029,1737534645730,-151.0,0.00019722,2]
[349953030,1737534645740,-1357.12,0.00019722,2]
[349953031,1737534645750,-628.45,0.00019722,2]
[349953032,1737534645761,-846.46,0.00019722,2]
[349953033,1737534645771,-751.94,0.00019722,2]
[349953034,1737534645782,-151.0,0.00019722,2]
[349953035,1737534645793,-500.0,0.00019722,2]
[349953036,1737534645802,-500.0,0.00019722,2]
[349953037,1737534645814,-500.0,0.00019722,2]
[349953039,1737534645824,-1535.03,0.00019722,2]
[349953040,1737534645835,-500.0,0.00019722,2]
[349953041,1737534645845,-1286.53,0.00019722,2]
[349953042,1737534645855,-1081.56,0.00019722,2]
[349953043,1737534645864,-500.0,0.00019722,2]
[349953044,1737534645874,-500.0,0.00019722,2]
[349953045,1737534645885,-500.0,0.00019722,2]
[349953046,1737534645895,-904.23,0.00019722,2]
[349953047,1737534645905,-500.0,0.00019722,2]
[349953048,1737534645917,-500.0,0.00019722,2]
[349953049,1737534645927,-500.0,0.00019722,2]
[349953050,1737534645938,-500.0,0.00019722,2]
[349953051,1737534645948,-151.0,0.00019722,2]
[349953052,1737534645958,-1031.68589099,0.00019726,14]
[349953053,1737534645968,-676.37,0.00019767,7]
[349953054,1737534645978,-676.37,0.00019767,7]
[349953055,1737534645988,-676.37,0.00019767,7]
[349953056,1737534645998,-676.37,0.00019767,7]
[349953057,1737534646007,-500.0,0.00019864,2]
[349953058,1737534646017,-2242.40864827,0.00019865,2]
[349953059,1737534646027,-2000.0,0.00019865,2]
[349953060,1737534646037,-200.0,0.00019865,2]
[349953061,1737534646047,-200.0,0.00019865,2]
[349953062,1737534646057,-1545.73220754,0.00019865,2]
[349953063,1737534646066,-205.40745374,0.000199,2]
[349953064,1737534646076,-1031.49488831,0.00019917,5]
[349953065,1737534646085,-771210.34008141,0.00019972,2]
[349953066,1737534646095,-500.0,0.00019973,2]
[349953067,1737534646104,-205.40745367,0.00019983,2]
[349953068,1737534646113,-500.0,0.00019994,2]
[349953069,1737534646123,-500.0,0.00019994,2]
[349953070,1737534646132,-591.31,0.00019994,2]
[349953071,1737534646143,-506.36543386,0.00019994,2]
[349953072,1737534646152,-500.0,0.00019994,2]
[349953073,1737534646163,-500.0,0.00019994,2]
[349953074,1737534646173,-500.0,0.00019994,2]
[349953075,1737534646182,-500.0,0.00019994,2]
[349953076,1737534646193,-568.77092965,0.00019994,2]
[349953077,1737534646202,-503.79,0.00019994,2]
[349953078,1737534646212,-500.0,0.00019994,2]
[349953079,1737534646221,-500.0,0.00019994,2]
[349953080,1737534646231,-500.0,0.00019994,2]
[349953081,1737534646240,-500.0,0.00019994,2]
[349953082,1737534646250,-500.0,0.00019994,2]
[349953083,1737534646260,-500.0,0.00019994,2]
[349953084,1737534646270,-852.68,0.00019994,2]
[349953085,1737534646279,-500.0,0.00019994,2]
[349953086,1737534646288,-500.0,0.00019994,2]
[349953087,1737534646298,-500.0,0.00019994,2]
[349953088,1737534646308,-500.0,0.00019994,2]
[349953089,1737534646318,-500.0,0.00019994,2]
[349953090,1737534646327,-602.67,0.00019994,2]
[349953091,1737534646337,-500.0,0.00019994,2]
[349953092,1737534646347,-531.64215475,0.00019994,2]
[349953093,1737534646358,-500.0,0.00019994,2]
[349953094,1737534646367,-500.0,0.00019994,2]
[349953095,1737534646376,-500.0,0.00019994,2]
[349953096,1737534646386,-500.0,0.00019994,2]
[349953097,1737534646396,-500.0,0.00019994,2]
[349953098,1737534646406,-500.0,0.00019994,2]
[349953099,1737534646416,-500.0,0.00019994,2]
[349953100,1737534646426,-489.15548484,0.00019994,2]
[349953101,1737534646436,-500.0,0.00019994,2]
[349953102,1737534646446,-500.0,0.00019994,2]
[349953103,1737534646456,-500.0,0.00019994,2]
[349953104,1737534646466,-500.0,0.00019994,2]
[349953105,1737534646475,-500.0,0.00019994,2]
[349953107,1737534646485,-647.65,0.00019994,2]
[349953109,1737534646495,-500.0,0.00019994,2]
[349953111,1737534646505,-500.0,0.00019994,2]
[349953113,1737534646518,-500.0,0.00019994,2]
[349953115,1737534646528,-687.02,0.00019994,2]
[349953117,1737534646537,-500.0,0.00019994,2]
[349953119,1737534646547,-500.0,0.00019994,2]
[349953121,1737534646557,-500.0,0.00019994,2]
[349953123,1737534646567,-155.075813,0.00019994,2]
[349953125,1737534646576,-500.0,0.00019994,2]
[349953127,1737534646587,-500.0,0.00019994,2]
[349953129,1737534646596,-500.0,0.00019994,2]
[349953131,1737534646606,-500.0,0.00019994,2]
[349953133,1737534646615,-944.8,0.00019994,2]
[349953134,1737534646625,-500.0,0.00019994,2]
[349953135,1737534646634,-500.0,0.00019994,2]
[349953136,1737534646643,-607.92,0.00019994,2]
[349953137,1737534646653,-500.0,0.00019994,2]
[349953138,1737534646663,-367.55468581,0.00019994,2]
[349953139,1737534646673,-500.0,0.00019994,2]
[349953140,1737534646683,-500.0,0.00019994,2]
[349953141,1737534646692,-500.0,0.00019994,2]
[349953142,1737534646702,-500.0,0.00019994,2]
[349953143,1737534646711,-500.0,0.00019994,2]
[349953144,1737534646721,-500.0,0.00019994,2]
[349953145,1737534646730,-500.0,0.00019994,2]
[349953146,1737534646739,-414.85963809,0.00019994,2]
[349953147,1737534646749,-500.0,0.00019994,2]
[349953148,1737534646758,-500.0,0.00019994,2]
[349953149,1737534646768,-520.9,0.00019994,2]
[349953150,1737534646778,-500.0,0.00019994,2]
[349953151,1737534646787,-500.0,0.00019994,2]
[349953152,1737534646797,-668.54,0.00019994,2]
[349953153,1737534646806,-500.0,0.00019994,2]
[349953154,1737534646816,-2520.05,0.00019994,2]
[349953155,1737534646826,-500.0,0.00019994,2]
[349953156,1737534646835,-2961.88,0.00019994,2]
[349953157,1737534646845,-500.0,0.00019994,2]
[349953158,1737534646855,-905.46,0.00019994,2]
[349953159,1737534646864,-5597.14,0.00019994,2]
[349953160,1737534646874,-500.0,0.00019994,2]
[349953161,1737534646883,-500.0,0.00019994,2]
[349953162,1737534646893,-9273.24,0.00019994,2]
[349953163,1737534646903,-500.0,0.00019994,2]
[349953164,1737534646913,-349.96070651,0.00019994,2]
[349953165,1737534646923,-1227.0,0.00019994,2]
[349953166,1737534646933,-573.33202155,0.00019994,2]
[349953167,1737534646942,-695.5,0.00019994,2]
[349953168,1737534646952,-923.7,0.00019994,2]
[349953169,1737534646962,-500.0,0.00019994,2]
[349953170,1737534646971,-3018.93,0.00019994,2]
[349953171,1737534646980,-300.0,0.00019994,2]
[349953172,1737534646990,-500.0,0.00019994,2]
[349953173,1737534646999,-500.0,0.00019994,2]
[349953174,1737534647010,-500.0,0.00019994,2]
[349953175,1737534647022,-500.0,0.00019994,2]
[349953176,1737534647032,-500.0,0.00019994,2]
[349953177,1737534647041,-500.0,0.00019994,2]
[349953178,1737534647051,-500.0,0.00019994,2]
[349953179,1737534647060,-708.43,0.00019994,2]
[349953180,1737534647071,-2798.83,0.00019994,2]
[349953181,1737534647080,-1275.81,0.00019994,2]
[349953182,1737534647090,-952.33,0.00019994,2]
[349953183,1737534647099,-500.0,0.00019994,2]
[349953184,1737534647108,-679.69,0.00019994,2]
[349953185,1737534647118,-1367.21,0.00019994,2]
[349953186,1737534647127,-1822.07,0.00019994,2]
[349953187,1737534647137,-500.0,0.00019994,2]
[349953188,1737534647153,-500.0,0.00019994,2]
[349953189,1737534647165,-579.19,0.00019994,2]
[349953190,1737534647174,-1523.71,0.00019994,2]
[349953191,1737534647185,-1989.41,0.00019994,2]
[349953192,1737534647195,-1111.48,0.00019994,2]
[349953193,1737534647205,-500.0,0.00019994,2]
[349953194,1737534647215,-500.0,0.00019994,2]
[349953195,1737534647226,-585.36,0.00019994,2]
[349953196,1737534647236,-500.0,0.00019994,2]
[349953197,1737534647251,-500.0,0.00019994,2]
[349953198,1737534647262,-969.23,0.00019994,2]
[349953199,1737534647272,-1176.75,0.00019994,2]
[349953200,1737534647282,-2321.67,0.00019994,2]
[349953201,1737534647292,-1016.17,0.00019994,2]
[349953202,1737534647303,-500.0,0.00019994,2]
[349953203,1737534647313,-651.97,0.00019994,2]
[349953204,1737534647323,-890.17,0.00019994,2]
[349953205,1737534647334,-1287.3,0.00019994,2]
[349953206,1737534647344,-500.0,0.00019994,2]
[349953207,1737534647355,-611.1172192,0.00019994,2]
[349953208,1737534647366,-500.0,0.00019994,2]
[349953209,1737534647375,-500.0,0.00019994,2]
[349953210,1737534647386,-500.0,0.00019994,2]
[349953211,1737534647396,-2276.36,0.00019994,2]
[349953212,1737534647406,-2974.96,0.00019994,2]
[349953213,1737534647418,-560.18,0.00019994,2]
[349953214,1737534647428,-647.81,0.00019994,2]
[349953215,1737534647438,-500.0,0.00019994,2]
[349953216,1737534647447,-500.0,0.00019994,2]
[349953217,1737534647458,-894.7,0.00019994,2]
[349953218,1737534647468,-2510.85,0.00019994,2]
[349953219,1737534647478,-934.57,0.00019994,2]
[349953220,1737534647488,-500.0,0.00019994,2]
[349953221,1737534647499,-215.11823575,0.00019994,2]
[349953222,1737534647509,-500.0,0.00019994,2]
[349953223,1737534647522,-1575.38,0.00019994,2]
[349953224,1737534647534,-500.0,0.00019994,2]
[349953225,1737534647544,-500.0,0.00019994,2]
[349953226,1737534647554,-3008.08,0.00019994,2]
[349953227,1737534647564,-500.0,0.00019994,2]
[349953228,1737534647574,-500.0,0.00019994,2]
[349953229,1737534647583,-713.84,0.00019994,2]
[349953230,1737534647593,-500.0,0.00019994,2]
[349953231,1737534647605,-696.86,0.00019994,2]
[349953232,1737534647615,-500.0,0.00019994,2]
[349953233,1737534647624,-500.0,0.00019994,2]
[349953234,1737534647635,-500.0,0.00019994,2]
[349953235,1737534647645,-614.95,0.00019994,2]
[349953236,1737534647656,-2476.15,0.00019994,2]
[349953237,1737534647667,-222.07693973,0.00019994,2]
[349953238,1737534647677,-500.0,0.00019994,2]
[349953239,1737534647687,-515.75,0.00019994,2]
[349953240,1737534647696,-500.0,0.00019994,2]
[349953241,1737534647706,-500.0,0.00019994,2]
[349953242,1737534647716,-151.0,0.00019994,2]
[349953243,1737534647726,-500.0,0.00019994,2]
[349953244,1737534647736,-516.18,0.00019994,2]
[349953245,1737534647746,-357.574955,0.00019994,2]
[349953246,1737534647756,-589.48,0.00019994,2]
[349953247,1737534647766,-500.0,0.00019994,2]
[349953248,1737534647777,-4017.44,0.00019994,2]
[349953249,1737534647787,-1031.4948883,0.00019995,5]
[349953250,1737534647797,-197.806318,0.00019995,2]
[349953251,1737534647807,-429.71243851,0.00019995,2]
[349953252,1737534647818,-775.02,0.00019995,2]
[349953253,1737534647829,-500.0,0.00019995,2]
[349953254,1737534647849,-947.67,0.00019995,2]
[349953255,1737534647860,-1037.53,0.00019995,2]
[349953256,1737534647870,-500.0,0.00019995,2]
[349953257,1737534647881,-700.29,0.00019995,2]
[349953258,1737534647890,-636.14,0.00019995,2]
[349953259,1737534647900,-576.43,0.00019995,2]
[349953260,1737534647910,-500.0,0.00019995,2]
[349953261,1737534647922,-500.0,0.00019995,2]
[349953262,1737534647932,-500.0,0.00019995,2]
[349953263,1737534647942,-500.0,0.00019995,2]
[349953264,1737534647952,-564.75,0.00019995,2]
[349953265,1737534647962,-500.0,0.00019995,2]
[349953266,1737534647972,-500.0,0.00019995,2]
[349953267,1737534647982,-500.0,0.00019995,2]
[349953268,1737534647993,-500.0,0.00019995,2]
[349953269,1737534648003,-550.57,0.00019995,2]
[349953270,1737534648013,-991.83,0.00019995,2]
[349953271,1737534648022,-1008.4,0.00019995,2]
[349953272,1737534648032,-500.0,0.00019995,2]
[349953273,1737534648042,-500.0,0.00019995,2]
[349953274,1737534648053,-500.0,0.00019995,2]
[349953275,1737534648235,-500.0,0.00019995,2]
[349953276,1737534648246,-500.0,0.00019995,2]
[349953277,1737534648256,-500.0,0.00019995,2]
[349953278,1737534648266,-500.0,0.00019995,2]
[349953279,1737534648276,-500.0,0.00019995,2]
[349953280,1737534648286,-694.5,0.00019995,2]
[349953281,1737534648296,-1202.02,0.00019995,2]
[349953282,1737534648306,-1070.48,0.00019995,2]
[349953283,1737534648316,-932.56,0.00019995,2]
[349953284,1737534648326,-560.85,0.00019995,2]
[349953285,1737534648336,-706.83,0.00019995,2]
[349953286,1737534648347,-1361.57,0.00019995,2]
[349953287,1737534648358,-644.06,0.00019995,2]
[349953288,1737534648368,-624.83,0.00019995,2]
[349953289,1737534648378,-796.67,0.00019995,2]
[349953290,1737534648387,-500.0,0.00019995,2]
[349953291,1737534648398,-1438.162394,0.00019995,2]
[349953292,1737534648408,-500.0,0.00019995,2]
[349953293,1737534648419,-1377.23,0.00019995,2]
[349953294,1737534648429,-1229.49,0.00019995,2]
[349953295,1737534648438,-880.9,0.00019995,2]
[349953296,1737534648449,-500.0,0.00019995,2]
[349953297,1737534648459,-500.0,0.00019995,2]
[349953298,1737534648468,-500.0,0.00019995,2]
[349953299,1737534648479,-1013.44,0.00019995,2]
[349953300,1737534648489,-950.86,0.00019995,2]
[349953301,1737534648499,-619.91834863,0.00019995,2]
[349953302,1737534648512,-677.67,0.00019995,2]
[349953303,1737534648523,-948.099067,0.00019995,2]
[349953304,1737534648532,-1398.08,0.00019995,2]
[349953305,1737534648542,-205.33812297,0.00019995,2]
[349953306,1737534648552,-916.72,0.00019995,2]
[349953307,1737534648562,-1072.95,0.00019995,2]
[349953308,1737534648575,-500.0,0.00019995,2]
[349953309,1737534648585,-1526.48,0.00019995,2]
[349953310,1737534648595,-698.84,0.00019995,2]
[349953311,1737534648605,-500.0,0.00019995,2]
[349953312,1737534648616,-500.0,0.00019995,2]
[349953313,1737534648627,-615.72,0.00019995,2]
[349953314,1737534648636,-500.0,0.00019995,2]
[349953315,1737534648647,-500.0,0.00019995,2]
[349953316,1737534648656,-1074.97,0.00019995,2]
[349953317,1737534648666,-500.0,0.00019995,2]
[349953318,1737534648677,-500.0,0.00019995,2]
[349953319,1737534648687,-500.0,0.00019995,2]
[349953320,1737534648696,-500.0,0.00019995,2]
[349953321,1737534648706,-500.0,0.00019995,2]
[349953322,1737534648716,-603.53,0.00019995,2]
[349953323,1737534648726,-500.0,0.00019995,2]
[349953324,1737534648736,-1670.42,0.00019995,2]
[349953325,1737534648746,-500.0,0.00019995,2]
[349953326,1737534648756,-500.0,0.00019995,2]
[349953327,1737534648766,-500.0,0.00019995,2]
[349953328,1737534648776,-1037.24,0.00019995,2]
[349953329,1737534648785,-1018.24,0.00019995,2]
[349953330,1737534648795,-500.0,0.00019995,2]
[349953331,1737534648805,-500.0,0.00019995,2]
[349953332,1737534648816,-477.78285868,0.00019995,2]
[349953333,1737534648826,-500.0,0.00019995,2]
[349953334,1737534648837,-895.81,0.00019995,2]
[349953335,1737534648849,-1128.14,0.00019995,2]
[349953336,1737534648860,-1063.29,0.00019995,2]
[349953337,1737534648871,-500.0,0.00019995,2]
[349953338,1737534648882,-500.0,0.00019995,2]
[349953339,1737534648892,-1229.9,0.00019995,2]
[349953340,1737534648902,-500.0,0.00019995,2]
[349953341,1737534648914,-910.85,0.00019995,2]
[349953342,1737534648924,-713.75,0.00019995,2]
[349953343,1737534648935,-976.93,0.00019995,2]
[349953344,1737534648945,-500.0,0.00019995,2]
[349953345,1737534648955,-500.0,0.00019995,2]
[349953346,1737534648964,-1056.04,0.00019995,2]
[349953347,1737534648974,-500.0,0.00019995,2]
[349953348,1737534648984,-500.0,0.00019995,2]
[349953349,1737534648993,-880.91,0.00019995,2]
[349953350,1737534649003,-500.0,0.00019995,2]
[349953351,1737534649012,-542.64,0.00019995,2]
[349953352,1737534649022,-620.06,0.00019995,2]
[349953353,1737534649032,-1345.98,0.00019995,2]
[349953354,1737534649041,-940.54,0.00019995,2]
[349953355,1737534649051,-1177.26,0.00019995,2]
[349953356,1737534649060,-1602.21,0.00019995,2]
[349953357,1737534649070,-500.0,0.00019995,2]
[349953358,1737534649080,-500.0,0.00019995,2]
[349953359,1737534649091,-650.05,0.00019995,2]
[349953360,1737534649101,-2865.39,0.00019995,2]
[349953361,1737534649112,-500.0,0.00019995,2]
[349953362,1737534649122,-1460.66,0.00019995,2]
[349953363,1737534649132,-903.86,0.00019995,2]
[349953364,1737534649142,-910.11,0.00019995,2]
[349953365,1737534649152,-1447.14,0.00019995,2]
[349953366,1737534649165,-2028.26,0.00019995,2]
[349953367,1737534649175,-2040.82,0.00019995,2]
[349953368,1737534649185,-710.66,0.00019995,2]
[349953369,1737534649195,-1247.1,0.00019995,2]
[349953370,1737534649205,-500.0,0.00019995,2]
[349953371,1737534649216,-1194.86,0.00019995,2]
[349953372,1737534649227,-999.9,0.00019995,2]
[349953373,1737534649238,-500.0,0.00019995,2]
[349953374,1737534649248,-1111.37,0.00019995,2]
[349953375,1737534649257,-2552.95,0.00019995,2]
[349953376,1737534649268,-1490.37,0.00019995,2]
[349953377,1737534649279,-1149.55,0.00019995,2]
[349953378,1737534649289,-500.0,0.00019995,2]
[349953379,1737534649299,-500.0,0.00019995,2]
[349953380,1737534649310,-5785.18,0.00019995,2]
[349953381,1737534649320,-634.52,0.00019995,2]
[349953382,1737534649331,-956.77,0.00019995,2]
[349953383,1737534649341,-1268.92,0.00019995,2]
[349953384,1737534649350,-2423.9,0.00019995,2]
[349953385,1737534649360,-500.0,0.00019995,2]
[349953386,1737534649370,-2326.11,0.00019995,2]
[349953387,1737534649379,-775.29,0.00019995,2]
[349953388,1737534649389,-966.49,0.00019995,2]
[349953389,1737534649399,-500.0,0.00019995,2]
[349953390,1737534649408,-3638.14,0.00019995,2]
[349953391,1737534649420,-614.54,0.00019995,2]
[349953392,1737534649432,-657.7,0.00019995,2]
[349953393,1737534649442,-3328.69,0.00019995,2]
[349953394,1737534649452,-5075.84,0.00019995,2]
[349953395,1737534649464,-1598.91,0.00019995,2]
[349953396,1737534649474,-1452.67,0.00019995,2]
[349953397,1737534649484,-500.0,0.00019995,2]
[349953398,1737534649496,-914.4,0.00019995,2]
[349953399,1737534649506,-2138.98,0.00019995,2]
[349953400,1737534649516,-500.0,0.00019995,2]
[349953401,1737534649528,-500.0,0.00019995,2]
[349953402,1737534649538,-506.53,0.00019995,2]
[349953403,1737534649547,-1155.63,0.00019995,2]
[349953404,1737534649556,-500.0,0.00019995,2]
[349953405,1737534649567,-2857.9,0.00019995,2]
[349953406,1737534649577,-1293.83,0.00019995,2]
[349953407,1737534649587,-500.0,0.00019995,2]
[349953408,1737534649597,-3678.54,0.00019995,2]
[349953409,1737534649607,-500.0,0.00019995,2]
[349953410,1737534649616,-3091.61,0.00019995,2]
[349953411,1737534649627,-500.0,0.00019995,2]
[349953412,1737534649636,-547.79,0.00019995,2]
[349953413,1737534649646,-3070.73,0.00019995,2]
[349953414,1737534649656,-957.09,0.00019995,2]
[349953415,1737534649667,-853.35,0.00019995,2]
[349953416,1737534649676,-1475.16,0.00019995,2]
[349953417,1737534649685,-676.64,0.00019995,2]
[349953418,1737534649700,-1214.2,0.00019995,2]
[349953419,1737534649709,-693.59,0.00019995,2]
[349953420,1737534649718,-1500.17,0.00019995,2]
[349953421,1737534649729,-500.0,0.00019995,2]
[349953422,1737534649738,-4612.68,0.00019995,2]
[349953423,1737534649748,-500.0,0.00019995,2]
[349953424,1737534649759,-500.0,0.00019995,2]
[349953425,1737534649769,-695.39,0.00019995,2]
[349953426,1737534649778,-999.84,0.00019995,2]
[349953427,1737534649788,-500.0,0.00019995,2]
[349953428,1737534649798,-500.0,0.00019995,2]
[349953429,1737534649808,-2191.68,0.00019995,2]
[349953430,1737534649818,-500.0,0.00019995,2]
[349953431,1737534649827,-533.07,0.00019995,2]
[349953432,1737534649836,-1250.87,0.00019995,2]
[349953433,1737534649846,-500.0,0.00019995,2]
[349953434,1737534649856,-500.0,0.00019995,2]
[349953435,1737534649865,-500.0,0.00019995,2]
[349953436,1737534649875,-911.61,0.00019995,2]
[349953437,1737534649884,-500.0,0.00019995,2]
[349953438,1737534649893,-500.0,0.00019995,2]
[349953439,1737534649903,-1011.73,0.00019995,2]
[349953440,1737534649917,-783.63,0.00019995,2]
[349953441,1737534649927,-785.43,0.00019995,2]
[349953442,1737534649936,-665.31,0.00019995,2]
[349953443,1737534649947,-500.0,0.00019995,2]
[349953444,1737534649961,-1768.25,0.00019995,2]
[349953445,1737534649972,-821.28,0.00019995,2]
[349953446,1737534649982,-1086.52,0.00019995,2]
[349953447,1737534649992,-500.0,0.00019995,2]
[349953448,1737534650002,-500.0,0.00019995,2]
[349953449,1737534650011,-587.54,0.00019995,2]
[349953450,1737534650021,-583.26,0.00019995,2]
[349953451,1737534650031,-551.1,0.00019995,2]
[349953452,1737534650041,-500.0,0.00019995,2]
[349953453,1737534650050,-221.5493,0.00019995,2]
[349953454,1737534650060,-1882.75,0.00019995,2]
[349953455,1737534650070,-1838.57,0.00019995,2]
[349953456,1737534650080,-500.0,0.00019995,2]
[349953457,1737534650090,-500.0,0.00019995,2]
[349953458,1737534650099,-500.0,0.00019996,2]
[349953459,1737534650109,-500.0,0.00019996,2]
[349953460,1737534650119,-500.0,0.00019996,2]
[349953461,1737534650129,-500.0,0.00019996,2]
[349953462,1737534650143,-500.0,0.00019996,2]
[349953463,1737534650153,-500.0,0.00019996,2]
[349953464,1737534650163,-500.0,0.00019996,2]
[349953465,1737534650173,-500.0,0.00019996,2]
[349953466,1737534650183,-722.82,0.00019996,2]